bitfinex/quotes_BTCUSD_20230113
["timestamp","ask_amount","ask_price","bid_price","bid_amount"]
[1673643332333,0.12386511,19463.0,19462.0,0.42666397]
[1673643332583,0.12386511,19463.0,19460.0,0.513874]
[1673643332584,0.87370525,19463.0,19460.0,0.513874]
[1673643332842,0.99661019,19463.0,19462.0,0.139]
[1673643333096,0.78630525,19463.0,19462.0,6e-05]
[1673643333347,0.78630525,19463.0,19462.0,0.14006]
[1673643333596,0.88630525,19463.0,19462.0,6e-05]
[1673643334090,0.22386511,19463.0,19462.0,6e-05]
[1673643334334,1.06192111,19463.0,19462.0,0.14006]
[1673643334584,1.57571611,19463.0,19462.0,0.14006]
[1673643334833,1.75211611,19463.0,19462.0,0.14006]
[1673643335073,1.75211611,19463.0,19462.0,0.14]
[1673643335328,1.75211611,19463.0,19458.0,0.00025]
[1673643335575,1.25345511,19463.0,19462.0,0.009]
[1673643335837,0.1,19462.0,19458.0,0.11611977]
[1673643336107,0.0874,19460.0,19458.0,0.11592977]
[1673643336356,1.37009511,19463.0,19460.0,0.61456413]
[1673643336357,0.89369267,19463.0,19460.0,0.61456413]
[1673643336606,0.89369267,19463.0,19461.0,0.06145641]
[1673643337557,0.63789013,19462.0,19461.0,0.06145641]
[1673643339027,0.63789013,19462.0,19461.0,0.17945641]
[1673643339272,0.63789013,19462.0,19461.0,0.06145641]
[1673643339506,0.33789013,19462.0,19461.0,0.17945641]
[1673643339762,0.01592511,19463.0,19461.0,0.69330441]
[1673643340018,0.01592511,19463.0,19462.0,0.06933044]
[1673643340554,1.34562511,19463.0,19461.0,0.11806]
[1673643340806,0.600461,19462.0,19461.0,0.11806]
[1673643341094,1.114282,19462.0,19461.0,0.11806]
[1673643341365,0.324261,19462.0,19461.0,0.11904145]
[1673643341615,0.61714011,19463.0,19461.0,0.12996414]
[1673643341850,0.188,19462.0,19461.0,6e-05]
[1673643342096,0.512261,19462.0,19461.0,6e-05]
[1673643342389,1.026082,19462.0,19461.0,6e-05]
[1673643342652,0.188,19462.0,19461.0,0.11806]
[1673643342899,0.64008356,19462.0,19461.0,0.011866]
[1673643343141,0.64008356,19462.0,19461.0,0.04506]
[1673643343373,0.64008356,19462.0,19461.0,6e-05]
[1673643343655,0.64008356,19462.0,19461.0,0.00906]
[1673643343656,0.19,19462.0,19461.0,0.00906]
[1673643343880,1.51614694,19462.0,19461.0,0.00906]
[1673643344128,1.962559,19462.0,19461.0,0.00906]
[1673643344609,1.960559,19462.0,19461.0,6e-05]
[1673643344847,1.962559,19462.0,19461.0,6e-05]
[1673643345098,1.960559,19462.0,19461.0,6e-05]
[1673643345343,1.962559,19462.0,19461.0,0.00906]
[1673643345586,1.960559,19462.0,19461.0,6e-05]
[1673643345847,1.962559,19462.0,19461.0,0.01106]
[1673643346081,1.960559,19462.0,19461.0,6e-05]
[1673643346325,1.962559,19462.0,19461.0,0.01106]
[1673643347542,2.11365578,19462.0,19461.0,0.01106]
[1673643347795,1.39117878,19462.0,19461.0,0.03749886]
[1673643348043,0.45309678,19462.0,19461.0,0.01106]
[1673643348298,0.002,19462.0,19461.0,0.08009619]
[1673643348558,0.01592511,19463.0,19461.0,1.18384708]
[1673643348877,0.01592511,19463.0,19462.0,0.11628884]
[1673643349137,0.01592511,19463.0,19462.0,0.63010984]
[1673643349375,0.01592511,19463.0,19462.0,0.80886165]
[1673643349860,0.01592511,19463.0,19462.0,0.80895481]
[1673643350573,0.01592511,19463.0,19462.0,0.80253129]
[1673643351055,0.01592511,19463.0,19462.0,0.84743813]
[1673643351303,0.01592511,19463.0,19462.0,0.84837742]
[1673643352043,0.50778046,19463.0,19462.0,0.84743813]
[1673643353021,0.50778046,19463.0,19462.0,0.15486532]
[1673643353260,0.50778046,19463.0,19462.0,0.04281367]
[1673643353764,0.50778046,19463.0,19461.0,0.06909619]
[1673643353995,0.51178046,19463.0,19461.0,0.64348047]
[1673643354247,0.01992511,19463.0,19461.0,1.27561224]
[1673643354490,0.01992511,19463.0,19462.0,1.23808699]
[1673643354735,0.01592511,19463.0,19462.0,2.49289626]
[1673643355466,0.01592511,19463.0,19462.0,2.63289626]
[1673643355711,0.01592511,19463.0,19462.0,2.49289626]
[1673643356219,0.01592511,19463.0,19462.0,2.58069626]
[1673643356452,0.01592511,19463.0,19462.0,2.42925141]
[1673643356697,0.01592511,19463.0,19462.0,2.07112618]
[1673643356939,0.01592511,19463.0,19462.0,2.36258374]
[1673643357194,0.01592511,19463.0,19462.0,2.89096555]
[1673643357429,0.01592511,19463.0,19462.0,2.14739405]
[1673643357902,0.01592511,19463.0,19462.0,2.70884805]
[1673643358155,0.01592511,19463.0,19462.0,2.14739405]
[1673643358882,0.01592511,19463.0,19462.0,2.64948107]
[1673643359125,0.01592511,19463.0,19462.0,1.76876922]
[1673643359371,0.01592511,19463.0,19462.0,1.76882922]
[1673643359870,0.01592511,19463.0,19462.0,2.59723142]
[1673643360392,0.01592511,19463.0,19462.0,2.90147933]
[1673643360632,0.01592511,19463.0,19462.0,2.59723142]
[1673643360855,0.01592511,19463.0,19462.0,2.06088767]
[1673643361091,0.01592511,19463.0,19462.0,2.59613221]
[1673643361348,0.01592511,19463.0,19462.0,2.06088767]
[1673643361590,0.01592511,19463.0,19462.0,3.25235185]
[1673643361853,0.01592511,19463.0,19462.0,2.8715324]
[1673643362100,0.01592511,19463.0,19462.0,2.19388922]
[1673643362340,0.01592511,19463.0,19462.0,2.19170305]
[1673643362585,0.01592511,19463.0,19462.0,2.55657442]
[1673643362840,0.01592511,19463.0,19462.0,3.06734324]
[1673643363094,0.01592511,19463.0,19462.0,2.17618064]
[1673643363592,0.01592511,19463.0,19462.0,2.69480922]
[1673643363853,0.01592511,19463.0,19462.0,2.67738844]
[1673643364087,0.01592511,19463.0,19462.0,2.17618064]
[1673643364340,0.01592511,19463.0,19462.0,2.17612064]
[1673643364614,0.0143326,19463.0,19462.0,3.24525213]
[1673643364867,0.0143326,19463.0,19462.0,3.09035334]
[1673643365134,0.0143326,19463.0,19462.0,3.24525213]
[1673643365398,0.0043326,19463.0,19462.0,3.54525213]
[1673643365638,0.0043326,19463.0,19462.0,4.37653936]
[1673643365883,0.01650424,19464.0,19463.0,0.35452521]
[1673643366126,0.01650424,19464.0,19463.0,3.97482336]
[1673643366405,0.01650424,19464.0,19463.0,4.09318036]
[1673643366623,0.01650424,19464.0,19463.0,4.80809155]
[1673643366877,0.01650424,19464.0,19463.0,5.47203413]
[1673643367145,0.01650424,19464.0,19463.0,4.27023938]
[1673643367673,0.01599559,19465.0,19464.0,0.1]
[1673643367914,0.01599559,19465.0,19464.0,3.75459494]
[1673643368149,0.01666772,19468.0,19465.0,0.1]
[1673643368401,0.01666772,19468.0,19467.0,0.3632]
[1673643368643,0.01666772,19468.0,19467.0,2.76692872]
[1673643368892,0.01666772,19468.0,19467.0,2.81924472]
[1673643369139,0.01666772,19468.0,19467.0,3.79599625]
[1673643369395,0.01666772,19469.0,19468.0,0.1]
[1673643369644,0.02117561,19474.0,19468.0,3.61905368]
[1673643369899,0.02117561,19474.0,19473.0,0.0874]
[1673643370158,0.02117561,19474.0,19473.0,1.78167786]
[1673643370396,0.02117561,19474.0,19473.0,1.755239]
[1673643370648,0.02117561,19474.0,19473.0,1.86987786]
[1673643370902,0.02117561,19474.0,19473.0,2.39611056]
[1673643371145,0.02117561,19474.0,19473.0,2.5106717]
[1673643371460,0.02117561,19474.0,19473.0,2.35153268]
[1673643371647,0.02117561,19474.0,19473.0,1.756039]
[1673643371900,0.02117561,19474.0,19473.0,1.293308]
[1673643371901,0.5713381,19474.0,19473.0,1.293308]
[1673643372142,0.02117561,19474.0,19473.0,1.293308]
[1673643372403,0.02117561,19474.0,19473.0,2.0077407]
[1673643372915,0.02117561,19474.0,19473.0,2.1827407]
[1673643373159,0.02117561,19474.0,19473.0,2.0437407]
[1673643373414,0.02117561,19474.0,19473.0,2.63806844]
[1673643373711,0.02117561,19474.0,19473.0,2.11189574]
[1673643373712,0.23148055,19474.0,19473.0,2.11189574]
[1673643374002,0.53600981,19474.0,19473.0,1.154368]
[1673643374265,0.53600981,19474.0,19473.0,1.293368]
[1673643374530,0.02117561,19474.0,19473.0,1.381568]
[1673643375035,0.02117561,19474.0,19473.0,1.90818329]
[1673643375553,0.02117561,19474.0,19473.0,2.00818329]
[1673643375776,0.02117561,19474.0,19473.0,1.90818329]
[1673643376022,0.02117561,19474.0,19473.0,1.90824329]
[1673643376768,0.02117561,19474.0,19473.0,1.90818329]
[1673643377254,0.48725097,19474.0,19473.0,1.275898]
[1673643377495,0.48725097,19474.0,19473.0,0.652591]
[1673643377740,0.48725097,19474.0,19473.0,0.762361]
[1673643378001,0.48725097,19474.0,19473.0,0.623361]
[1673643378241,0.48725097,19474.0,19473.0,0.7672882]
[1673643378502,0.48725097,19474.0,19473.0,0.8770582]
[1673643378751,0.48725097,19474.0,19473.0,0.24983]
[1673643378996,0.48725097,19474.0,19473.0,0.24483]
[1673643380243,0.48725097,19474.0,19473.0,0.13506]
[1673643380731,0.02117561,19474.0,19473.0,0.13506]
[1673643380985,0.44010823,19474.0,19473.0,0.13506]
[1673643381234,0.02117561,19474.0,19473.0,0.17501086]
[1673643381485,0.02117561,19474.0,19473.0,1.285404]
[1673643381734,0.02117561,19474.0,19473.0,1.70301556]
[1673643381982,0.02117561,19474.0,19473.0,1.8155767]
[1673643381983,0.02217561,19474.0,19473.0,1.8155767]
[1673643382224,0.02217561,19474.0,19473.0,1.9916767]
[1673643382476,0.02117561,19474.0,19473.0,1.9526767]
[1673643383243,0.02117561,19474.0,19473.0,1.9527701]
[1673643383744,0.02217561,19474.0,19473.0,2.0927701]
[1673643383985,0.02117561,19474.0,19473.0,2.3400701]
[1673643384231,0.02217561,19474.0,19473.0,2.4790701]
[1673643384486,0.02117561,19474.0,19473.0,2.82303632]
[1673643384728,0.02217561,19474.0,19473.0,2.96103632]
[1673643384976,0.02217561,19474.0,19473.0,2.82303632]
[1673643384977,0.02117561,19474.0,19473.0,2.82303632]
[1673643385230,0.02217561,19474.0,19473.0,2.96103632]
[1673643385474,0.01995805,19474.0,19473.0,3.35783632]
[1673643385731,0.01995805,19474.0,19473.0,3.39589534]
[1673643386237,0.0002967,19479.0,19474.0,0.43958953]
[1673643386485,0.0002967,19479.0,19478.0,0.5206]
[1673643386775,0.0002967,19479.0,19478.0,1.91392137]
[1673643387025,0.0002967,19479.0,19478.0,1.913828]
[1673643387270,0.0002967,19479.0,19478.0,0.109731]
[1673643387271,0.51382134,19479.0,19478.0,0.109731]
[1673643387514,0.0002967,19479.0,19478.0,1.136529]
[1673643387759,0.0012967,19479.0,19478.0,1.27662237]
[1673643388004,0.0012967,19479.0,19478.0,2.32951648]
[1673643388249,0.0012967,19479.0,19478.0,3.03044918]
[1673643388750,0.0012967,19479.0,19478.0,2.40427648]
[1673643388988,0.41221164,19479.0,19478.0,0.76319]
[1673643389236,0.41221164,19479.0,19478.0,0.76334337]
[1673643389733,0.41221164,19479.0,19478.0,0.76325]
[1673643390228,0.41221164,19479.0,19478.0,0.95578292]
[1673643391459,0.40721164,19479.0,19478.0,0.95578292]
[1673643391715,0.01666971,19480.0,19478.0,0.95578292]
[1673643391957,0.51874158,19480.0,19478.0,0.84605192]
[1673643392227,0.51874158,19480.0,19479.0,0.109719]
[1673643392499,0.51874158,19480.0,19479.0,0.25663599]
[1673643392736,0.01766971,19480.0,19479.0,1.94199006]
[1673643392985,0.01666971,19480.0,19479.0,1.42861706]
[1673643393237,0.01760311,19480.0,19479.0,2.06099006]
[1673643393480,0.01760311,19480.0,19479.0,1.29266299]
[1673643393736,0.01760311,19480.0,19479.0,0.88900799]
[1673643393980,0.01760311,19480.0,19479.0,0.119]
[1673643393981,0.22790805,19480.0,19479.0,0.119]
[1673643394233,1.66704305,19480.0,19479.0,0.079]
[1673643394482,1.56523811,19480.0,19479.0,0.079]
[1673643395486,1.66223811,19480.0,19479.0,0.008]
[1673643395738,1.56423811,19480.0,19477.0,0.00012]
[1673643395983,1.56423811,19480.0,19479.0,0.008]
[1673643395984,1.89009963,19480.0,19479.0,0.008]
[1673643396494,0.66670563,19480.0,19479.0,0.008]
[1673643397975,0.95219111,19480.0,19479.0,0.008]
[1673643398222,1.46614751,19480.0,19479.0,0.008]
[1673643398772,0.48311051,19480.0,19479.0,0.008]
[1673643399007,0.36614751,19480.0,19479.0,0.008]
[1673643399494,0.32614751,19480.0,19479.0,0.008]
[1673643399998,0.32614751,19480.0,19479.0,0.06025693]
[1673643400511,0.32614751,19480.0,19479.0,0.008]
[1673643402037,0.32614751,19480.0,19479.0,0.00806]
[1673643402290,0.32614751,19480.0,19479.0,0.00812]
[1673643403017,0.9772,19481.0,19479.0,1.034866]
[1673643403255,0.9772,19481.0,19480.0,0.77916494]
[1673643404996,0.9772,19481.0,19480.0,1.29251194]
[1673643405245,0.9772,19481.0,19480.0,1.80585894]
[1673643405498,0.9772,19481.0,19480.0,2.13007194]
[1673643406492,0.9772,19481.0,19480.0,2.20307194]
[1673643406745,0.02617,19482.0,19480.0,2.71641894]
[1673643406983,0.02617,19482.0,19481.0,0.38137689]
[1673643407234,0.02617,19482.0,19481.0,1.40801689]
[1673643407483,0.02617,19482.0,19481.0,1.29828189]
[1673643407726,0.02617,19482.0,19481.0,1.62249489]
[1673643407972,0.02617,19482.0,19481.0,1.72249489]
[1673643408967,0.02617,19482.0,19481.0,1.86349489]
[1673643409221,0.02617,19482.0,19481.0,1.72249489]
[1673643409463,0.02617,19482.0,19481.0,1.86349489]
[1673643409706,0.02617,19482.0,19481.0,2.63640484]
[1673643409968,0.02617,19482.0,19481.0,3.12905167]
[1673643410212,0.02617,19482.0,19481.0,4.47216165]
[1673643410463,0.02617,19482.0,19481.0,4.94202258]
[1673643410709,0.02617,19482.0,19481.0,4.26293195]
[1673643410916,0.02617,19482.0,19481.0,4.49042911]
[1673643411194,0.02617,19482.0,19481.0,3.81913716]
[1673643411438,0.02617,19482.0,19481.0,2.65293087]
[1673643411744,0.02617,19482.0,19481.0,2.54024008]
[1673643412242,0.02617,19482.0,19481.0,2.01324568]
[1673643412512,0.02617,19482.0,19481.0,4.1941372]
[1673643412760,0.02617,19482.0,19481.0,4.33409988]
[1673643413012,0.02617,19482.0,19481.0,4.03399511]
[1673643413266,0.02617,19482.0,19481.0,3.85485067]
[1673643413514,0.02617,19482.0,19481.0,3.47586481]
[1673643413759,0.02617,19482.0,19481.0,3.95496513]
[1673643414004,0.02355301,19482.0,19481.0,4.04316513]
[1673643414245,0.02355301,19482.0,19481.0,3.90316513]
[1673643414463,0.02355301,19482.0,19481.0,4.03716513]
[1673643414779,0.02355301,19482.0,19481.0,3.89810513]
[1673643415277,0.23385795,19482.0,19481.0,4.45757746]
[1673643415522,0.02355301,19482.0,19481.0,3.31616826]
[1673643415778,0.02355301,19482.0,19481.0,3.30362065]
[1673643416028,0.02355301,19482.0,19481.0,3.34147327]
[1673643416281,0.02355301,19482.0,19481.0,3.85926678]
[1673643416534,0.02355301,19482.0,19481.0,3.78356591]
[1673643416774,0.02355301,19482.0,19481.0,3.39333134]
[1673643417012,0.02355301,19482.0,19481.0,3.62060642]
[1673643417259,0.02355301,19482.0,19481.0,3.4816026]
[1673643417503,0.02355301,19482.0,19481.0,3.85917351]
[1673643417753,0.02355301,19482.0,19481.0,3.41712773]
[1673643417995,0.02355301,19482.0,19481.0,3.85602364]
[1673643418238,0.02355301,19482.0,19481.0,3.17733422]
[1673643418506,0.02355301,19482.0,19481.0,3.85603503]
[1673643418756,0.02355301,19482.0,19481.0,3.03833422]
[1673643419006,0.33727754,19485.0,19482.0,0.71652862]
[1673643419256,0.33727754,19485.0,19483.0,1.136237]
[1673643419499,0.33727754,19485.0,19484.0,0.324158]
[1673643419747,0.33727754,19485.0,19484.0,1.35064]
[1673643420489,0.91347351,19488.0,19484.0,1.35064]
[1673643420735,0.40060486,19487.0,19485.0,0.244754]
[1673643420990,0.40060486,19487.0,19486.0,0.324119]
[1673643421249,0.40060486,19487.0,19485.0,0.648274]
[1673643421984,0.31076371,19486.0,19485.0,0.648274]
[1673643422226,0.31076371,19486.0,19485.0,0.51321]
[1673643422476,0.31076371,19486.0,19485.0,0.837483]
[1673643422974,0.31076371,19486.0,19485.0,0.837543]
[1673643423722,0.31076371,19486.0,19485.0,0.978543]
[1673643423969,0.31076371,19486.0,19485.0,0.837543]
[1673643424253,0.31076371,19486.0,19485.0,0.978543]
[1673643424491,0.01897351,19488.0,19485.0,2.91185322]
[1673643424741,0.43776352,19488.0,19486.0,0.209608]
[1673643424988,0.01897351,19488.0,19487.0,0.837339]
[1673643425240,0.01897351,19488.0,19487.0,1.96004079]
[1673643426737,0.01897351,19488.0,19487.0,2.20004079]
[1673643426989,0.01897351,19488.0,19487.0,2.06004079]
[1673643427236,0.01897351,19488.0,19487.0,2.68057022]
[1673643427499,0.01897351,19488.0,19487.0,2.54057022]
[1673643427767,0.01897351,19488.0,19487.0,2.68057022]
[1673643428019,0.01897351,19488.0,19487.0,2.003663]
[1673643428264,0.01897351,19488.0,19487.0,1.490501]
[1673643428265,0.44004277,19488.0,19487.0,1.490501]
[1673643428762,0.01897351,19488.0,19487.0,1.590561]
[1673643429011,0.01897351,19488.0,19487.0,2.44687225]
[1673643429259,0.01897351,19488.0,19487.0,2.34878835]
[1673643429520,0.01897351,19488.0,19487.0,2.20687225]
[1673643429781,0.01897351,19488.0,19487.0,1.490621]
[1673643430025,0.45519925,19488.0,19487.0,1.350621]
[1673643430284,0.45519925,19488.0,19487.0,1.489621]
[1673643430529,0.45519925,19488.0,19487.0,1.350621]
[1673643431045,0.45519925,19488.0,19487.0,1.490621]
[1673643431797,0.45519925,19488.0,19487.0,0.14012]
[1673643432531,0.45442297,19488.0,19487.0,0.154132]
[1673643432781,0.45442297,19488.0,19487.0,0.14012]
[1673643433274,0.40442297,19488.0,19487.0,0.14012]
[1673643433763,0.40442297,19488.0,19487.0,0.14006]
[1673643434016,0.40442297,19488.0,19487.0,0.14]
[1673643434268,0.91755897,19488.0,19487.0,0.14]
[1673643434514,1.67812001,19488.0,19487.0,0.14]
[1673643434782,1.56781507,19488.0,19487.0,0.14]
[1673643435031,1.47971507,19488.0,19487.0,0.14]
[1673643435549,1.47971507,19488.0,19486.0,0.00012]
[1673643435550,1.427435,19488.0,19486.0,0.00012]
[1673643435802,0.701863,19487.0,19486.0,0.00012]
[1673643436045,1.428187,19487.0,19486.0,0.00012]
[1673643436289,1.728187,19487.0,19486.0,0.00012]
[1673643436526,1.727087,19487.0,19486.0,0.00012]
[1673643436778,1.727087,19487.0,19486.0,0.01012]
[1673643437024,1.427087,19487.0,19486.0,0.00012]
[1673643437284,1.427087,19487.0,19486.0,0.01012]
[1673643437541,1.515287,19487.0,19486.0,0.00012]
[1673643437783,1.815287,19487.0,19486.0,0.00012]
[1673643438288,1.515287,19487.0,19486.0,0.00012]
[1673643438535,1.615287,19487.0,19486.0,0.00018]
[1673643438794,2.013587,19487.0,19486.0,0.00018]
[1673643439035,2.013587,19487.0,19486.0,0.01000516]
[1673643439036,2.06586707,19487.0,19486.0,0.01000516]
[1673643439307,2.06586707,19487.0,19486.0,5.16e-06]
[1673643439567,2.06586707,19487.0,19482.0,0.00019]
[1673643439811,0.1761,19483.0,19482.0,0.00019]
[1673643440071,1.52526304,19483.0,19482.0,0.00019]
[1673643440575,1.54556304,19483.0,19482.0,0.00019]
[1673643440809,1.217934,19483.0,19482.0,0.00019]
[1673643441056,1.305934,19483.0,19482.0,0.01019]
[1673643441318,2.684034,19483.0,19482.0,0.00019]
[1673643441567,2.679034,19483.0,19482.0,0.00019]
[1673643441811,2.679034,19483.0,19480.0,0.00353001]
[1673643442064,0.1762,19481.0,19480.0,0.00353001]
[1673643442319,0.60152,19481.0,19480.0,0.62768226]
[1673643442569,0.60152,19481.0,19480.0,0.06665616]
[1673643442570,0.0967,19481.0,19480.0,0.06665616]
[1673643442806,0.0967,19481.0,19480.0,0.00353001]
[1673643443065,0.1967,19481.0,19480.0,0.00353001]
[1673643443311,0.50779833,19481.0,19480.0,0.01053001]
[1673643443559,0.92111833,19481.0,19480.0,0.01053001]
[1673643443801,0.92111833,19481.0,19480.0,0.07432483]
[1673643444049,0.92111833,19481.0,19480.0,0.01053001]
[1673643444289,0.92111833,19481.0,19480.0,0.56508402]
[1673643444290,0.0967,19481.0,19480.0,0.56508402]
[1673643444536,0.0967,19481.0,19480.0,0.56495535]
[1673643444995,0.0085,19481.0,19480.0,0.56495535]
[1673643445260,0.0085,19481.0,19480.0,0.62180881]
[1673643446001,0.0085,19481.0,19480.0,0.61480881]
[1673643446254,0.0085,19481.0,19480.0,0.68893748]
[1673643446507,0.0085,19481.0,19480.0,0.68880881]
[1673643447024,1.10381007,19485.0,19480.0,0.68880881]
[1673643447025,0.82325701,19485.0,19480.0,1.78375753]
[1673643447276,0.1,19486.0,19481.0,0.68057714]
[1673643447532,0.1,19486.0,19482.0,1.43132139]
[1673643447789,1.4514589,19487.0,19483.0,0.35058286]
[1673643448033,0.3562589,19487.0,19484.0,1.60488495]
[1673643448583,0.39467218,19488.0,19485.0,0.32418]
[1673643448833,7.00645136,19490.0,19486.0,0.76624186]
[1673643449075,7.00645136,19490.0,19487.0,0.06688182]
[1673643449326,6.82401162,19490.0,19484.0,1.61507876]
[1673643449576,6.82401162,19490.0,19484.0,0.83095775]
[1673643449577,0.40231904,19488.0,19484.0,0.83095775]
[1673643449833,0.40231904,19488.0,19482.0,0.8180614]
[1673643449834,0.20530494,19487.0,19482.0,0.8180614]
[1673643450083,0.0874,19488.0,19486.0,0.143]
[1673643450084,0.43890336,19488.0,19486.0,0.143]
[1673643450352,0.35150336,19488.0,19484.0,0.55247944]
[1673643450611,0.1,19487.0,19485.0,0.66737983]
[1673643450873,0.50062436,19489.0,19486.0,0.32418]
[1673643451115,0.40062436,19489.0,19487.0,0.226585]
[1673643451357,0.40062436,19489.0,19486.0,0.0882]
[1673643451600,0.31174489,19488.0,19485.0,0.81896236]
[1673643451842,0.40795404,19487.0,19485.0,0.66737983]
[1673643452109,0.40795404,19487.0,19486.0,0.32418]
[1673643452354,0.40795404,19487.0,19486.0,0.27418]
[1673643452596,0.40795404,19487.0,19486.0,0.41418]
[1673643452840,6.85717668,19490.0,19486.0,0.27418]
[1673643452841,0.39840652,19489.0,19486.0,0.27418]
[1673643453089,0.39840652,19489.0,19487.0,0.79175162]
[1673643453337,0.39840652,19489.0,19488.0,0.274149]
[1673643453579,0.39340652,19489.0,19487.0,0.027418]
[1673643454075,0.39340652,19489.0,19487.0,0.5909949]
[1673643454580,0.39340652,19489.0,19488.0,0.324174]
[1673643454823,0.40190652,19489.0,19488.0,0.41569089]
[1673643455068,0.40190652,19489.0,19488.0,0.09151689]
[1673643455316,6.61370668,19490.0,19488.0,0.92882689]
[1673643455558,7.01603338,19490.0,19489.0,0.176536]
[1673643455805,0.16900959,19489.0,19488.0,0.60465289]
[1673643456055,0.16900959,19489.0,19488.0,1.27192602]
[1673643456311,0.16900959,19489.0,19488.0,1.61766289]
[1673643456581,0.16900959,19489.0,19488.0,2.24789348]
[1673643457345,0.16900959,19489.0,19488.0,2.54688199]
[1673643457589,0.15210864,19489.0,19488.0,2.92260108]
[1673643457842,6.61370668,19490.0,19488.0,2.76260108]
[1673643458101,6.61370668,19490.0,19489.0,1.49584002]
[1673643458351,6.61370668,19490.0,19489.0,2.10989184]
[1673643458609,6.61370668,19490.0,19489.0,2.4771387]
[1673643458869,6.61370668,19490.0,19489.0,1.51081369]
[1673643459114,6.61370668,19490.0,19489.0,1.52341369]
[1673643459378,6.61370668,19490.0,19489.0,1.83312264]
[1673643459618,4.57157563,19490.0,19489.0,2.38379923]
[1673643459867,4.57157563,19490.0,19489.0,3.44800511]
[1673643459868,3.59832964,19490.0,19489.0,3.44800511]
[1673643460113,0.0625,19492.0,19490.0,0.19021182]
[1673643460369,0.0625,19492.0,19491.0,3.00724354]
[1673643460623,0.02014847,19494.0,19491.0,3.7498978]
[1673643460866,0.02014847,19494.0,19492.0,0.55440005]
[1673643460867,0.91829286,19494.0,19492.0,0.55440005]
[1673643461124,0.01964766,19496.0,19493.0,0.324084]
[1673643461372,0.72068609,19495.0,19492.0,0.61228382]
[1673643461623,0.05228007,19495.0,19492.0,0.61228382]
[1673643462174,0.30700494,19494.0,19492.0,0.1]
[1673643462412,0.81998694,19494.0,19493.0,0.143]
[1673643462660,0.71196807,19494.0,19493.0,0.143]
[1673643462923,1.01196807,19494.0,19493.0,0.0052]
[1673643463165,1.79347301,19494.0,19493.0,0.0052]
[1673643463408,2.24268217,19494.0,19489.0,0.00019]
[1673643463649,0.1761,19490.0,19489.0,0.00019]
[1673643463899,0.146406,19490.0,19489.0,0.00019]
[1673643464154,0.146406,19490.0,19485.0,2.9304991]
[1673643464408,1.38244894,19489.0,19485.0,2.9304991]
[1673643464679,0.59850494,19488.0,19485.0,2.9304991]
[1673643464924,0.1756,19486.0,19485.0,2.9304991]
[1673643465184,0.78240494,19486.0,19485.0,0.50847068]
[1673643465438,0.88469101,19486.0,19485.0,0.006]
[1673643465695,0.88469101,19486.0,19480.0,0.00353001]
[1673643465954,0.0877,19481.0,19480.0,0.00353001]
[1673643466225,0.058506,19481.0,19480.0,0.00353001]
[1673643466485,0.058506,19481.0,19480.0,0.00346155]
[1673643466789,0.32557494,19481.0,19480.0,0.00346155]
[1673643467001,0.71377494,19481.0,19480.0,0.00346155]
[1673643467250,1.24249568,19481.0,19480.0,0.00346155]
[1673643467494,1.29477575,19481.0,19480.0,0.07446155]
[1673643467738,1.066796,19481.0,19480.0,0.00346155]
[1673643467988,1.242596,19481.0,19480.0,0.00346155]
[1673643468237,0.165276,19481.0,19480.0,0.00346155]
[1673643468482,0.165276,19481.0,19480.0,0.01446155]
[1673643468726,0.465276,19481.0,19480.0,0.00346155]
[1673643468971,0.6460044,19481.0,19480.0,0.01446155]
[1673643469222,1.4233244,19481.0,19480.0,0.01106155]
[1673643469728,1.5107244,19481.0,19480.0,0.01106155]
[1673643469973,1.56300447,19481.0,19480.0,6.155e-05]
[1673643470222,1.56300447,19481.0,19480.0,0.01006155]
[1673643470476,2.08923717,19481.0,19479.0,0.00351927]
[1673643470733,1.37049815,19481.0,19480.0,0.011]
[1673643470995,1.37049815,19481.0,19479.0,0.00351927]
[1673643470996,1.58560607,19481.0,19479.0,0.00351927]
[1673643471241,0.87410007,19481.0,19480.0,0.0085]
[1673643471492,2.21073877,19481.0,19479.0,0.00351927]
[1673643471741,0.5347327,19480.0,19479.0,0.01451927]
[1673643472002,2.54572374,19480.0,19476.0,0.00412301]
[1673643472265,0.2634,19477.0,19476.0,2.301e-05]
[1673643472520,2.23448168,19477.0,19475.0,0.02717]
[1673643472771,1.71118087,19476.0,19475.0,0.02717]
[1673643473043,3.53682985,19476.0,19472.0,0.00387576]
[1673643473302,3.53682985,19476.0,19467.0,0.0045241]
[1673643473303,0.6605,19473.0,19467.0,0.0045241]
[1673643473548,0.6605,19473.0,19468.0,0.52988028]
[1673643473549,1.29595694,19472.0,19468.0,0.52988028]
[1673643473792,0.050006,19471.0,19469.0,0.05298803]
[1673643474039,0.22321,19470.0,19469.0,0.00033319]
[1673643474342,0.0085,19470.0,19469.0,0.1]
[1673643474555,0.21030494,19470.0,19469.0,0.1]
[1673643474810,0.22898,19474.0,19469.0,0.239]
[1673643474811,0.37385895,19471.0,19469.0,0.239]
[1673643475064,0.21130494,19471.0,19469.0,0.1]
[1673643475319,0.157776,19470.0,19469.0,0.239]
[1673643475563,0.157776,19470.0,19468.0,0.00019]
[1673643475564,0.156776,19470.0,19468.0,0.00019]
[1673643475803,0.156776,19470.0,19467.0,0.0045241]
[1673643475804,1.0782,19469.0,19467.0,0.0045241]
[1673643476050,0.350006,19468.0,19467.0,0.0045241]
[1673643476300,0.534706,19468.0,19467.0,0.0045241]
[1673643476550,0.74501094,19468.0,19467.0,0.0045241]
[1673643476793,1.02650909,19468.0,19463.0,0.00428779]
[1673643477047,0.0882,19465.0,19463.0,0.00428779]
[1673643477306,1.226606,19464.0,19463.0,0.00428779]
[1673643477551,1.059006,19464.0,19463.0,0.00428779]
[1673643478049,1.059006,19464.0,19463.0,0.01528779]
[1673643478344,1.059006,19464.0,19463.0,0.00428779]
[1673643478588,1.070006,19464.0,19463.0,0.01028779]
[1673643479097,1.40819992,19464.0,19463.0,0.01028779]
[1673643479610,1.370006,19464.0,19463.0,0.01028779]
[1673643479856,1.38219396,19464.0,19463.0,0.01028779]
[1673643480106,1.46441665,19464.0,19463.0,0.01028779]
[1673643480350,1.43808662,19464.0,19463.0,0.01028779]
[1673643480592,1.38965736,19464.0,19463.0,0.01028779]
[1673643480839,1.070006,19464.0,19463.0,0.01028779]
[1673643481338,1.5885794,19464.0,19463.0,0.01028779]
[1673643481611,1.370006,19464.0,19463.0,0.01028779]
[1673643481871,1.85621094,19464.0,19463.0,0.01028779]
[1673643482121,2.2603387,19464.0,19458.0,0.00019]
[1673643482369,3.28952643,19463.0,19458.0,0.00019]
[1673643482617,0.058506,19462.0,19459.0,0.1]